fUSD/lending_fUSD_20260514
["ID","MTS","AMOUNT","RATE_DAILY","PERIOD"]
[422265522,1778773891000,-499.92387046,0.00041147,120]
[422265512,1778773891000,-500.0,0.00041147,120]
[422265507,1778773891000,-369.79971708,0.00041147,120]
[422265508,1778773891000,-500.0,0.00041147,120]
[422265523,1778773891000,-216.2322904,0.00041147,120]
[422265582,1778773892000,-500.0,0.00041147,120]
[422265574,1778773892000,-500.0,0.00041147,120]
[422265576,1778773892000,-500.0,0.00041147,120]
[422265583,1778773892000,-500.0,0.00041147,120]
[422265577,1778773892000,-500.0,0.00041147,120]
[422265575,1778773892000,-500.0,0.00041147,120]
[422265584,1778773892000,-500.0,0.00041147,120]
[422265586,1778773892000,-222.7848859,0.00041147,120]
[422265587,1778773892000,-249.79428707,0.00041147,120]
[422265585,1778773892000,-500.0,0.00041147,120]
[422265588,1778773892000,-178.69052383,0.00041147,120]
[422265591,1778773892000,-500.0,0.00041147,120]
[422265590,1778773892000,-387.57940287,0.00041147,120]
[422265593,1778773892000,-500.0,0.00041147,120]
[422265594,1778773892000,-500.0,0.00041147,120]
[422265592,1778773892000,-500.0,0.00041147,120]
[422265589,1778773892000,-184.51313604,0.00041147,120]
[422265597,1778773892000,-500.0,0.00041147,120]
[422265596,1778773892000,-500.0,0.00041147,120]
[422265578,1778773892000,-500.0,0.00041147,120]
[422265595,1778773892000,-500.0,0.00041147,120]
[422265581,1778773892000,-500.0,0.00041147,120]
[422265568,1778773892000,-500.0,0.00041147,120]
[422265580,1778773892000,-500.0,0.00041147,120]
[422265552,1778773892000,-171.6715761,0.00041147,120]
[422265553,1778773892000,-345.55176858,0.00041147,31]
[422265555,1778773892000,-198.43417347,0.00041147,120]
[422265554,1778773892000,-209.04902276,0.00041147,120]
[422265557,1778773892000,-272.33289172,0.00041147,120]
[422265556,1778773892000,-163.02198375,0.00041147,30]
[422265559,1778773892000,-180.5100065,0.00041147,120]
[422265558,1778773892000,-187.28841731,0.00041147,120]
[422265561,1778773892000,-196.60419651,0.00041147,120]
[422265569,1778773892000,-500.0,0.00041147,120]
[422265571,1778773892000,-500.0,0.00041147,120]
[422265560,1778773892000,-196.26288137,0.00041147,120]
[422265570,1778773892000,-500.0,0.00041147,120]
[422265564,1778773892000,-182.98748406,0.00041147,120]
[422265567,1778773892000,-205.16982102,0.00041147,120]
[422265562,1778773892000,-203.66275417,0.00041147,120]
[422265563,1778773892000,-273.4486033,0.00041147,120]
[422265565,1778773892000,-500.0,0.00041147,120]
[422265566,1778773892000,-500.0,0.00041147,120]
[422265572,1778773892000,-500.0,0.00041147,120]
[422265573,1778773892000,-500.0,0.00041147,120]
[422265579,1778773892000,-500.0,0.00041147,120]
[422265601,1778773892000,-500.0,0.00041147,120]
[422265598,1778773892000,-500.0,0.00041147,120]
[422265607,1778773892000,-500.0,0.00041147,120]
[422265630,1778773892000,-582.14,0.00041147,120]
[422265633,1778773892000,-582.14,0.00041147,120]
[422265629,1778773892000,-582.14,0.00041147,120]
[422265623,1778773892000,-174.27217693,0.00041147,120]
[422265627,1778773892000,-179.21807747,0.00041147,120]
[422265631,1778773892000,-582.14,0.00041147,120]
[422265632,1778773892000,-582.14,0.00041147,120]
[422265644,1778773892000,-238.93167391,0.00041147,120]
[422265634,1778773892000,-582.14,0.00041147,120]
[422265626,1778773892000,-180.53659652,0.00041147,120]
[422265638,1778773892000,-582.14,0.00041147,120]
[422265641,1778773892000,-582.14,0.00041147,120]
[422265639,1778773892000,-582.14,0.00041147,120]
[422265642,1778773892000,-582.14,0.00041147,120]
[422265643,1778773892000,-582.14,0.00041147,120]
[422265640,1778773892000,-582.14,0.00041147,120]
[422265637,1778773892000,-582.14,0.00041147,120]
[422265645,1778773892000,-582.14,0.00041147,120]
[422265646,1778773892000,-582.14,0.00041147,120]
[422265602,1778773892000,-500.0,0.00041147,120]
[422265635,1778773892000,-582.14,0.00041147,120]
[422265625,1778773892000,-178.53468978,0.00041147,120]
[422265636,1778773892000,-582.14,0.00041147,120]
[422265624,1778773892000,-1351.33,0.00041147,120]
[422265606,1778773892000,-500.0,0.00041147,120]
[422265628,1778773892000,-582.14,0.00041147,120]
[422265603,1778773892000,-500.0,0.00041147,120]
[422265599,1778773892000,-156.14541808,0.00041147,120]
[422265600,1778773892000,-500.0,0.00041147,120]
[422265604,1778773892000,-500.0,0.00041147,120]
[422265608,1778773892000,-500.0,0.00041147,120]
[422265609,1778773892000,-500.0,0.00041147,120]
[422265610,1778773892000,-500.0,0.00041147,120]
[422265611,1778773892000,-437.33349748,0.00041147,120]
[422265605,1778773892000,-500.0,0.00041147,120]
[422265613,1778773892000,-500.0,0.00041147,120]
[422265614,1778773892000,-500.0,0.00041147,120]
[422265616,1778773892000,-201.71721371,0.00041147,120]
[422265618,1778773892000,-100000.0,0.00041147,30]
[422265615,1778773892000,-504.52057309,0.00041147,120]
[422265620,1778773892000,-153.94689924,0.00041147,120]
[422265617,1778773892000,-158.47921939,0.00041147,120]
[422265621,1778773892000,-150.09049507,0.00041147,120]
[422265612,1778773892000,-500.0,0.00041147,120]
[422265619,1778773892000,-261.68606221,0.00041147,120]
[422265622,1778773892000,-224.63173376,0.00041147,120]
[422265678,1778773893000,-2336.41,0.00041147,120]
[422265691,1778773893000,-1962.84,0.00041147,120]
[422265689,1778773893000,-1962.84,0.00041147,120]
[422265685,1778773893000,-205.77739763,0.00041147,120]
[422265690,1778773893000,-1962.84,0.00041147,120]
[422265680,1778773893000,-2336.41,0.00041147,120]
[422265683,1778773893000,-2336.41,0.00041147,120]
[422265682,1778773893000,-2336.41,0.00041147,120]
[422265677,1778773893000,-2336.41,0.00041147,120]
[422265684,1778773893000,-2336.46505451,0.00041147,120]
[422265681,1778773893000,-2336.41,0.00041147,120]
[422265688,1778773893000,-1962.84,0.00041147,120]
[422265700,1778773893000,-1962.84,0.00041147,120]
[422265687,1778773893000,-1962.84,0.00041147,120]
[422265692,1778773893000,-1962.84,0.00041147,120]
[422265696,1778773893000,-1962.84,0.00041147,120]
[422265695,1778773893000,-1962.84,0.00041147,120]
[422265694,1778773893000,-1962.84,0.00041147,120]
[422265697,1778773893000,-1962.84,0.00041147,120]
[422265702,1778773893000,-1962.84,0.00041147,120]
[422265698,1778773893000,-1962.84,0.00041147,120]
[422265699,1778773893000,-1962.84,0.00041147,120]
[422265701,1778773893000,-1962.84,0.00041147,120]
[422265703,1778773893000,-1962.84,0.00041147,120]
[422265679,1778773893000,-2336.41,0.00041147,120]
[422265686,1778773893000,-1962.84,0.00041147,120]
[422265676,1778773893000,-2336.41,0.00041147,120]
[422265649,1778773893000,-582.14,0.00041147,120]
[422265674,1778773893000,-2336.41,0.00041147,120]
[422265656,1778773893000,-500.0,0.00041147,120]
[422265647,1778773893000,-582.14,0.00041147,120]
[422265653,1778773893000,-500.0,0.00041147,120]
[422265650,1778773893000,-582.14,0.00041147,120]
[422265654,1778773893000,-500.0,0.00041147,120]
[422265652,1778773893000,-582.22296463,0.00041147,120]
[422265648,1778773893000,-582.14,0.00041147,120]
[422265651,1778773893000,-582.14,0.00041147,120]
[422265655,1778773893000,-500.0,0.00041147,120]
[422265658,1778773893000,-190.5252346,0.00041147,120]
[422265665,1778773893000,-2336.41,0.00041147,120]
[422265666,1778773893000,-2336.41,0.00041147,120]
[422265675,1778773893000,-2336.41,0.00041147,120]
[422265660,1778773893000,-272.48785038,0.00041147,120]
[422265667,1778773893000,-2336.41,0.00041147,120]
[422265659,1778773893000,-213.62093911,0.00041147,120]
[422265661,1778773893000,-2336.41,0.00041147,120]
[422265662,1778773893000,-2336.41,0.00041147,120]
[422265664,1778773893000,-2336.41,0.00041147,120]
[422265663,1778773893000,-2336.41,0.00041147,120]
[422265668,1778773893000,-2336.41,0.00041147,120]
[422265670,1778773893000,-2336.41,0.00041147,120]
[422265693,1778773893000,-1962.84,0.00041147,120]
[422265671,1778773893000,-2336.41,0.00041147,120]
[422265669,1778773893000,-2336.41,0.00041147,120]
[422265673,1778773893000,-2336.41,0.00041147,120]
[422265657,1778773893000,-445.75976512,0.00041147,120]
[422265704,1778773893000,-1962.84,0.00041147,120]
[422265672,1778773893000,-2336.41,0.00041147,120]
[422265716,1778773893000,-500.0,0.00041147,120]
[422265737,1778773893000,-154.35098741,0.00041147,120]
[422265739,1778773893000,-169.25811334,0.00041147,120]
[422265742,1778773893000,-500.0,0.00041147,120]
[422265741,1778773893000,-50000.0,0.00041147,50]
[422265740,1778773893000,-157.25416775,0.00041147,120]
[422265749,1778773893000,-161.62399411,0.00041147,120]
[422265750,1778773893000,-154.47148432,0.00041147,120]
[422265748,1778773893000,-175.94882104,0.00041147,120]
[422265743,1778773893000,-500.0,0.00041147,120]
[422265751,1778773893000,-156.69127636,0.00041147,120]
[422265746,1778773893000,-500.0,0.00041147,120]
[422265745,1778773893000,-500.0,0.00041147,120]
[422265736,1778773893000,-200.63526454,0.00041147,120]
[422265744,1778773893000,-500.0,0.00041147,120]
[422265753,1778773893000,-50000.0,0.00041147,51]
[422265754,1778773893000,-50000.0,0.00041147,52]
[422265756,1778773893000,-50000.0,0.00041147,54]
[422265755,1778773893000,-50000.0,0.00041147,53]
[422265758,1778773893000,-50000.0,0.00041147,55]
[422265759,1778773893000,-157.28891002,0.00041147,120]
[422265762,1778773893000,-500.0,0.00041147,120]
[422265760,1778773893000,-156.5038547,0.00041147,120]
[422265761,1778773893000,-500.0,0.00041147,120]
[422265757,1778773893000,-169.64369672,0.00041147,120]
[422265763,1778773893000,-500.0,0.00041147,120]
[422265706,1778773893000,-1962.84,0.00041147,120]
[422265752,1778773893000,-182.27352431,0.00041147,120]
[422265734,1778773893000,-50000.0,0.00041147,48]
[422265747,1778773893000,-604.11893226,0.00041147,120]
[422265733,1778773893000,-250.19968932,0.00041147,120]
[422265732,1778773893000,-50000.0,0.00041147,47]
[422265705,1778773893000,-272.30453478,0.00041147,120]
[422265708,1778773893000,-1962.84,0.00041147,120]
[422265710,1778773893000,-1963.00915187,0.00041147,120]
[422265713,1778773893000,-500.0,0.00041147,120]
[422265711,1778773893000,-500.0,0.00041147,120]
[422265712,1778773893000,-500.0,0.00041147,120]
[422265709,1778773893000,-1962.84,0.00041147,120]
[422265714,1778773893000,-500.0,0.00041147,120]
[422265715,1778773893000,-500.0,0.00041147,120]
[422265718,1778773893000,-500.0,0.00041147,120]
[422265717,1778773893000,-500.0,0.00041147,120]
[422265728,1778773893000,-500.0,0.00041147,120]
[422265719,1778773893000,-500.0,0.00041147,120]
[422265707,1778773893000,-1962.84,0.00041147,120]
[422265730,1778773893000,-557.8349206,0.00041147,120]
[422265722,1778773893000,-500.0,0.00041147,120]
[422265721,1778773893000,-500.0,0.00041147,120]
[422265726,1778773893000,-500.0,0.00041147,120]
[422265723,1778773893000,-500.0,0.00041147,120]
[422265727,1778773893000,-50000.0,0.00041147,46]
[422265720,1778773893000,-500.0,0.00041147,120]
[422265725,1778773893000,-500.0,0.00041147,120]
[422265729,1778773893000,-500.0,0.00041147,120]
[422265724,1778773893000,-500.0,0.00041147,120]
[422265731,1778773893000,-237.01838255,0.00041147,120]
[422265735,1778773893000,-177.86841054,0.00041147,120]
[422265738,1778773893000,-50000.0,0.00041147,49]
[422265802,1778773894000,-583.34,0.00041147,120]
[422265804,1778773894000,-184.01837412,0.00041147,120]
[422265796,1778773894000,-181.77073045,0.00041147,120]
[422265807,1778773894000,-583.34,0.00041147,120]
[422265805,1778773894000,-583.34,0.00041147,120]
[422265808,1778773894000,-583.34,0.00041147,120]
[422265798,1778773894000,-583.34,0.00041147,120]
[422265801,1778773894000,-583.34,0.00041147,120]
[422265800,1778773894000,-583.34,0.00041147,120]
[422265797,1778773894000,-583.34,0.00041147,120]
[422265794,1778773894000,-170.46706652,0.00041147,120]
[422265803,1778773894000,-583.34,0.00041147,120]
[422265811,1778773894000,-583.34,0.00041147,120]
[422265810,1778773894000,-583.34,0.00041147,120]
[422265821,1778773894000,-583.34,0.00041147,120]
[422265806,1778773894000,-583.34,0.00041147,120]
[422265809,1778773894000,-583.34,0.00041147,120]
[422265813,1778773894000,-583.34,0.00041147,120]
[422265820,1778773894000,-583.34,0.00041147,120]
[422265817,1778773894000,-583.34,0.00041147,120]
[422265823,1778773894000,-50000.0,0.00041147,56]
[422265819,1778773894000,-583.34,0.00041147,120]
[422265822,1778773894000,-583.34989102,0.00041147,120]
[422265824,1778773894000,-161.98168065,0.00041147,120]
[422265814,1778773894000,-583.34,0.00041147,120]
[422265816,1778773894000,-583.34,0.00041147,120]
[422265815,1778773894000,-583.34,0.00041147,120]
[422265812,1778773894000,-583.34,0.00041147,120]
[422265795,1778773894000,-170.05724056,0.00041147,120]
[422265764,1778773894000,-500.0,0.00041147,120]
[422265793,1778773894000,-100000.0,0.00041147,30]
[422265818,1778773894000,-182.78689495,0.00041147,120]
[422265774,1778773894000,-500.0,0.00041147,120]
[422265767,1778773894000,-500.0,0.00041147,120]
[422265765,1778773894000,-500.0,0.00041147,120]
[422265771,1778773894000,-220.83198997,0.00041147,120]
[422265770,1778773894000,-509.25446404,0.00041147,120]
[422265772,1778773894000,-156.91069423,0.00041147,120]
[422265766,1778773894000,-500.0,0.00041147,120]
[422265769,1778773894000,-500.0,0.00041147,120]
[422265768,1778773894000,-341.76712677,0.00041147,120]
[422265773,1778773894000,-500.0,0.00041147,120]
[422265776,1778773894000,-500.0,0.00041147,120]
[422265786,1778773894000,-500.0,0.00041147,120]
[422265792,1778773894000,-155.25215119,0.00041147,120]
[422265785,1778773894000,-500.0,0.00041147,120]
[422265787,1778773894000,-500.0,0.00041147,120]
[422265777,1778773894000,-338.94255133,0.00041147,120]
[422265778,1778773894000,-187.97313881,0.00041147,120]
[422265783,1778773894000,-436.00994786,0.00041147,120]
[422265782,1778773894000,-500.0,0.00041147,120]
[422265779,1778773894000,-173.57171185,0.00041147,120]
[422265781,1778773894000,-500.0,0.00041147,120]
[422265780,1778773894000,-500.0,0.00041147,120]
[422265788,1778773894000,-500.32885618,0.00041147,120]
[422265789,1778773894000,-177.86323523,0.00041147,120]
[422265799,1778773894000,-583.34,0.00041147,120]
[422265790,1778773894000,-175.24534108,0.00041147,120]
[422265791,1778773894000,-155.3862374,0.00041147,120]
[422265775,1778773894000,-500.0,0.00041147,120]
[422265826,1778773894000,-182.31048015,0.00041147,120]
[422265784,1778773894000,-161.8038236,0.00041147,120]
[422265836,1778773894000,-159.73147684,0.00041147,120]
[422265854,1778773894000,-500.0,0.00041147,120]
[422265858,1778773894000,-169.65029841,0.00041147,120]
[422265859,1778773894000,-177.07696623,0.00041147,120]
[422265861,1778773894000,-165.18035695,0.00041147,120]
[422265865,1778773894000,-2641.88,0.00041147,120]
[422265867,1778773894000,-2641.88,0.00041147,120]
[422265864,1778773894000,-2641.88,0.00041147,120]
[422265875,1778773894000,-2641.88,0.00041147,120]
[422265866,1778773894000,-2641.88,0.00041147,120]
[422265876,1778773894000,-2641.88,0.00041147,120]
[422265869,1778773894000,-2641.88,0.00041147,120]
[422265873,1778773894000,-2641.88,0.00041147,120]
[422265872,1778773894000,-2641.88,0.00041147,120]
[422265855,1778773894000,-382.95069398,0.00041147,120]
[422265882,1778773894000,-2641.88,0.00041147,120]
[422265868,1778773894000,-2641.88,0.00041147,120]
[422265870,1778773894000,-2641.88,0.00041147,120]
[422265874,1778773894000,-2641.88,0.00041147,120]
[422265878,1778773894000,-2641.88,0.00041147,120]
[422265879,1778773894000,-2641.88,0.00041147,120]
[422265877,1778773894000,-2641.88,0.00041147,120]
[422265880,1778773894000,-2641.88,0.00041147,120]
[422265884,1778773894000,-2641.88,0.00041147,120]
[422265885,1778773894000,-1563.41,0.00041147,120]
[422265883,1778773894000,-1563.41,0.00041147,120]
[422265881,1778773894000,-2641.88,0.00041147,120]
[422265887,1778773894000,-1563.41,0.00041147,120]
[422265838,1778773894000,-166.53818963,0.00041147,120]
[422265871,1778773894000,-2641.88,0.00041147,120]
[422265862,1778773894000,-2641.88,0.00041147,120]
[422265886,1778773894000,-2641.88,0.00041147,120]
[422265863,1778773894000,-2641.88,0.00041147,120]
[422265860,1778773894000,-160.34094739,0.00041147,120]
[422265835,1778773894000,-160.40068844,0.00041147,120]
[422265832,1778773894000,-160.64683577,0.00041147,120]
[422265827,1778773894000,-500.0,0.00041147,120]
[422265837,1778773894000,-205.02118853,0.00041147,120]
[422265833,1778773894000,-500.0,0.00041147,120]
[422265828,1778773894000,-164.65262399,0.00041147,120]
[422265830,1778773894000,-253.82122479,0.00041147,120]
[422265829,1778773894000,-235.89012696,0.00041147,120]
[422265831,1778773894000,-180.69661014,0.00041147,60]
[422265834,1778773894000,-207.26570464,0.00041147,120]
[422265840,1778773894000,-179.72872985,0.00041147,120]
[422265839,1778773894000,-151.87096163,0.00041147,120]
[422265841,1778773894000,-187.06859064,0.00041147,120]
[422265825,1778773894000,-185.21443684,0.00041147,120]
[422265846,1778773894000,-500.0,0.00041147,120]
[422265845,1778773894000,-500.0,0.00041147,120]
[422265851,1778773894000,-171.9655495,0.00041147,120]
[422265857,1778773894000,-165.15413075,0.00041147,120]
[422265852,1778773894000,-500.0,0.00041147,120]
[422265844,1778773894000,-500.0,0.00041147,120]
[422265853,1778773894000,-500.0,0.00041147,120]
[422265843,1778773894000,-500.0,0.00041147,120]
[422265842,1778773894000,-244.8729128,0.00041147,90]
[422265850,1778773894000,-500.0,0.00041147,120]
[422265849,1778773894000,-500.0,0.00041147,120]
[422265856,1778773894000,-177.17842173,0.00041147,120]
[422265848,1778773894000,-282.22408885,0.00041147,120]
[422265847,1778773894000,-500.0,0.00041147,120]
[422265926,1778773895000,-1105.95,0.00041147,120]
[422265919,1778773895000,-283.2382297,0.00041147,120]
[422265921,1778773895000,-1105.95,0.00041147,120]
[422265920,1778773895000,-167.73876754,0.00041147,120]
[422265917,1778773895000,-500.0,0.00041147,120]
[422265916,1778773895000,-500.0,0.00041147,120]
[422265922,1778773895000,-1105.95,0.00041147,120]
[422265923,1778773895000,-1105.95,0.00041147,120]
[422265924,1778773895000,-1105.95,0.00041147,120]
[422265925,1778773895000,-1105.95,0.00041147,120]
[422265918,1778773895000,-500.0,0.00041147,120]
[422265931,1778773895000,-1105.95,0.00041147,120]
[422265930,1778773895000,-1105.95,0.00041147,120]
[422265929,1778773895000,-1105.95,0.00041147,120]
[422265928,1778773895000,-1105.95,0.00041147,120]
[422265932,1778773895000,-1105.95,0.00041147,120]
[422265933,1778773895000,-1105.95,0.00041147,120]
[422265935,1778773895000,-1105.95,0.00041147,120]
[422265936,1778773895000,-1105.95,0.00041147,120]
[422265945,1778773895000,-160.42711288,0.00041147,120]
[422265915,1778773895000,-500.0,0.00041147,120]
[422265934,1778773895000,-1105.95,0.00041147,120]
[422265927,1778773895000,-1105.95,0.00041147,120]
[422265914,1778773895000,-500.0,0.00041147,120]
[422265898,1778773895000,-1563.41,0.00041147,120]
[422265902,1778773895000,-1563.41,0.00041147,120]
[422265938,1778773895000,-1105.95,0.00041147,120]
[422265888,1778773895000,-2641.97905686,0.00041147,120]
[422265891,1778773895000,-1563.41,0.00041147,120]
[422265890,1778773895000,-1563.41,0.00041147,120]
[422265889,1778773895000,-1563.41,0.00041147,120]
[422265897,1778773895000,-1563.41,0.00041147,120]
[422265892,1778773895000,-1563.41,0.00041147,120]
[422265895,1778773895000,-1563.41,0.00041147,120]
[422265899,1778773895000,-186.24756563,0.00041147,120]
[422265896,1778773895000,-1563.41,0.00041147,120]
[422265894,1778773895000,-1563.41,0.00041147,120]
[422265913,1778773895000,-500.0,0.00041147,120]
[422265893,1778773895000,-1563.41,0.00041147,120]
[422265901,1778773895000,-1563.41,0.00041147,120]
[422265908,1778773895000,-1563.41,0.00041147,120]
[422265905,1778773895000,-1563.41,0.00041147,120]
[422265907,1778773895000,-1563.41,0.00041147,120]
[422265910,1778773895000,-1563.50786193,0.00041147,120]
[422265911,1778773895000,-167.96148329,0.00041147,120]
[422265912,1778773895000,-159.01198949,0.00041147,120]
[422265906,1778773895000,-1563.41,0.00041147,120]
[422265909,1778773895000,-1563.41,0.00041147,120]
[422265903,1778773895000,-1563.41,0.00041147,120]
[422265900,1778773895000,-1563.41,0.00041147,120]
[422265904,1778773895000,-1563.41,0.00041147,120]
[422265944,1778773895000,-1106.07779357,0.00041147,120]
[422265949,1778773895000,-1377.45,0.00041147,120]
[422265940,1778773895000,-1105.95,0.00041147,120]
[422265966,1778773895000,-1377.45,0.00041147,120]
[422265972,1778773895000,-165.69867856,0.00041147,120]
[422265975,1778773895000,-500.0,0.00041147,120]
[422265976,1778773895000,-500.0,0.00041147,120]
[422265974,1778773895000,-151.19178178,0.00041147,120]
[422265977,1778773895000,-500.0,0.00041147,120]
[422265979,1778773895000,-500.0,0.00041147,120]
[422265973,1778773895000,-172.51878082,0.00041147,120]
[422265978,1778773895000,-500.0,0.00041147,120]
[422265980,1778773895000,-582.84075533,0.00041147,120]
[422265981,1778773895000,-151.54493479,0.00041147,120]
[422265982,1778773895000,-172.30905019,0.00041147,120]
[422265983,1778773895000,-179.71554085,0.00041147,120]
[422265987,1778773895000,-153.50959332,0.00041147,120]
[422265988,1778773895000,-790.23,0.00041147,120]
[422265989,1778773895000,-790.23,0.00041147,120]
[422265984,1778773895000,-182.22920325,0.00041147,120]
[422265990,1778773895000,-790.23,0.00041147,120]
[422265992,1778773895000,-790.23,0.00041147,120]
[422265985,1778773895000,-500.0,0.00041147,120]
[422265939,1778773895000,-1105.95,0.00041147,120]
[422265993,1778773895000,-790.23,0.00041147,120]
[422265986,1778773895000,-519.14657205,0.00041147,120]
[422265968,1778773895000,-1377.45,0.00041147,120]
[422265965,1778773895000,-1377.45,0.00041147,120]
[422265991,1778773895000,-790.23,0.00041147,120]
[422265967,1778773895000,-1377.45,0.00041147,120]
[422265969,1778773895000,-162.56903953,0.00041147,120]
[422265941,1778773895000,-1105.95,0.00041147,120]
[422265943,1778773895000,-1105.95,0.00041147,120]
[422265942,1778773895000,-1105.95,0.00041147,120]
[422265947,1778773895000,-1377.45,0.00041147,120]
[422265948,1778773895000,-1377.45,0.00041147,120]
[422265946,1778773895000,-1377.45,0.00041147,120]
[422265950,1778773895000,-1377.45,0.00041147,120]
[422265952,1778773895000,-1377.45,0.00041147,120]
[422265955,1778773895000,-1377.45,0.00041147,120]
[422265953,1778773895000,-1377.45,0.00041147,120]
[422265956,1778773895000,-1377.45,0.00041147,120]
[422265937,1778773895000,-1105.95,0.00041147,120]
[422265957,1778773895000,-1377.45,0.00041147,120]
[422265951,1778773895000,-1377.45,0.00041147,120]
[422265964,1778773895000,-1377.45,0.00041147,120]
[422265961,1778773895000,-1377.45,0.00041147,120]
[422265970,1778773895000,-1377.55310073,0.00041147,120]
[422265959,1778773895000,-1377.45,0.00041147,120]
[422265971,1778773895000,-164.49386729,0.00041147,120]
[422265960,1778773895000,-1377.45,0.00041147,120]
[422265958,1778773895000,-1377.45,0.00041147,120]
[422265954,1778773895000,-1377.45,0.00041147,120]
[422265962,1778773895000,-1377.45,0.00041147,120]
[422265963,1778773895000,-1377.45,0.00041147,120]
[422266018,1778773896000,-500.0,0.00041147,120]
[422266030,1778773896000,-500.0,0.00041147,120]
[422266021,1778773896000,-500.0,0.00041147,120]
[422266020,1778773896000,-500.0,0.00041147,120]
[422266027,1778773896000,-500.0,0.00041147,120]
[422266029,1778773896000,-500.0,0.00041147,120]
[422266022,1778773896000,-500.0,0.00041147,120]
[422266028,1778773896000,-500.0,0.00041147,120]
[422266025,1778773896000,-500.0,0.00041147,120]
[422266023,1778773896000,-500.0,0.00041147,120]
[422266038,1778773896000,-500.0,0.00041147,120]
[422266031,1778773896000,-594.0190173,0.00041147,120]
[422266024,1778773896000,-500.0,0.00041147,120]
[422266033,1778773896000,-500.0,0.00041147,120]
[422266034,1778773896000,-500.0,0.00041147,120]
[422266035,1778773896000,-500.0,0.00041147,120]
[422266032,1778773896000,-500.0,0.00041147,120]
[422266039,1778773896000,-500.0,0.00041147,120]
[422266036,1778773896000,-500.0,0.00041147,120]
[422266008,1778773896000,-790.23,0.00041147,120]
[422266026,1778773896000,-500.0,0.00041147,120]
[422266009,1778773896000,-790.23,0.00041147,120]
[422266006,1778773896000,-790.23,0.00041147,120]
[422266014,1778773896000,-500.0,0.00041147,120]
[422265994,1778773896000,-790.23,0.00041147,120]
[422265995,1778773896000,-790.23,0.00041147,120]
[422265996,1778773896000,-790.23,0.00041147,120]
[422265998,1778773896000,-790.23,0.00041147,120]
[422266003,1778773896000,-790.23,0.00041147,120]
[422265997,1778773896000,-790.23,0.00041147,120]
[422266002,1778773896000,-790.23,0.00041147,120]
[422265999,1778773896000,-790.23,0.00041147,120]
[422266004,1778773896000,-790.23,0.00041147,120]
[422266016,1778773896000,-500.0,0.00041147,120]
[422266007,1778773896000,-790.23,0.00041147,120]
[422266005,1778773896000,-790.23,0.00041147,120]
[422266001,1778773896000,-790.23,0.00041147,120]
[422266012,1778773896000,-500.0,0.00041147,120]
[422266017,1778773896000,-500.0,0.00041147,120]
[422266037,1778773896000,-500.0,0.00041147,120]
[422266013,1778773896000,-500.0,0.00041147,120]
[422266010,1778773896000,-790.23,0.00041147,120]
[422266015,1778773896000,-500.0,0.00041147,120]
[422266011,1778773896000,-790.46816537,0.00041147,120]
[422266000,1778773896000,-790.23,0.00041147,120]
[422266042,1778773896000,-500.0,0.00041147,120]
[422266019,1778773896000,-500.0,0.00041147,120]
[422266040,1778773896000,-500.0,0.00041147,120]
[422266068,1778773896000,-551.82357579,0.00041147,120]
[422266069,1778773896000,-431.97222503,0.00041147,120]
[422266073,1778773896000,-500.0,0.00041147,120]
[422266075,1778773896000,-500.0,0.00041147,120]
[422266076,1778773896000,-500.0,0.00041147,120]